bitfinex/quotes_BTCUSD_20240815
["timestamp","ask_amount","ask_price","bid_price","bid_amount"]
[1723707355737,0.01110311,58059.0,58058.0,0.4008005]
[1723707356606,0.02758212,58059.0,58058.0,0.4008005]
[1723707357211,0.02758212,58059.0,58058.0,0.001821]
[1723707357420,0.46848449,58059.0,58058.0,0.001821]
[1723707357630,0.19478349,58059.0,58058.0,0.001821]
[1723707357841,0.19478293,58059.0,58058.0,0.001821]
[1723707358391,0.79761793,58059.0,58058.0,0.001821]
[1723707358675,0.63347505,58059.0,58058.0,0.001821]
[1723707359100,1.04616359,58059.0,58058.0,0.001821]
[1723707359275,1.34746249,58059.0,58058.0,1e-08]
[1723707359603,1.58859649,58059.0,58058.0,1e-08]
[1723707359790,1.74257873,58059.0,58058.0,1e-08]
[1723707360001,0.120587,58050.0,58043.0,0.01049278]
[1723707360127,0.05132717,58048.0,58044.0,0.01310938]
[1723707360327,0.10225709,58047.0,58044.0,0.01310938]
[1723707360548,0.01647982,58046.0,58044.0,0.01310938]
[1723707361053,0.01647982,58045.0,58044.0,0.01310938]
[1723707361456,0.22284909,58047.0,58044.0,0.01310938]
[1723707361659,0.0609,58045.0,58042.0,0.10543317]
[1723707361878,0.01647982,58044.0,58042.0,0.10543317]
[1723707362080,0.01647982,58044.0,58042.0,0.00543317]
[1723707362253,0.01647982,58044.0,58041.0,0.1]
[1723707362455,0.01647982,58044.0,58040.0,0.120604]
[1723707362654,0.13711441,58047.0,58041.0,0.1462644]
[1723707362655,0.01647982,58043.0,58041.0,0.1462644]
[1723707362856,0.01647982,58042.0,58041.0,0.2668684]
[1723707363102,0.13711441,58047.0,58042.0,0.1206]
[1723707363301,0.22010571,58049.0,58045.0,0.120596]
[1723707363302,0.01647738,58046.0,58045.0,0.120596]
[1723707363547,0.01647738,58046.0,58045.0,0.02668604]
[1723707363657,0.01647738,58048.0,58045.0,0.02668604]
[1723707363887,0.01647738,58047.0,58045.0,0.02668604]
[1723707364093,0.01647738,58046.0,58045.0,0.02668604]
[1723707364292,0.1431,58049.0,58045.0,0.02668604]
[1723707364518,0.01647848,58048.0,58047.0,0.667457]
[1723707364723,0.05133714,58058.0,58054.0,0.241154]
[1723707364928,0.00110311,58059.0,58058.0,0.120569]
[1723707365133,0.01758402,58059.0,58058.0,0.1421068]
[1723707365330,0.01758402,58059.0,58058.0,0.0215378]
[1723707365960,0.01758402,58059.0,58058.0,0.1421068]
[1723707366156,0.03158402,58059.0,58058.0,0.1421068]
[1723707366457,0.03158402,58059.0,58056.0,0.01046034]
[1723707366677,0.01648091,58058.0,58057.0,0.602855]
[1723707366871,0.01510311,58059.0,58058.0,0.120569]
[1723707367472,0.08293951,58059.0,58058.0,0.361707]
[1723707367721,0.03158374,58059.0,58058.0,0.361707]
[1723707367938,0.01510311,58059.0,58058.0,0.40993084]
[1723707368404,0.00110311,58059.0,58058.0,0.40993084]
[1723707368918,0.00110311,58059.0,58058.0,0.65106884]
[1723707369153,0.00110311,58059.0,58058.0,0.40993084]
[1723707369388,0.00110311,58059.0,58056.0,0.120572]
[1723707369853,0.00810311,58059.0,58056.0,0.120572]
[1723707370093,0.05945888,58059.0,58058.0,0.120569]
[1723707370649,0.05945888,58059.0,58054.0,0.13074779]
[1723707370875,0.05945888,58059.0,58055.0,0.13364978]
[1723707371293,0.08577727,58058.0,58054.0,0.01017279]
[1723707371503,0.08577727,58058.0,58022.0,0.55884519]
[1723707371504,0.05135577,58056.0,58043.0,0.0794]
[1723707371842,0.05135577,58056.0,58044.0,0.241196]
[1723707371843,0.07713335,58049.0,58044.0,0.241196]
[1723707372018,0.07713335,58049.0,58043.0,0.0794]
[1723707372019,0.05142366,58049.0,58047.0,0.120591]
[1723707372249,0.07713377,58054.0,58049.0,0.0796]
[1723707372374,0.00110311,58059.0,58058.0,0.501507]
[1723707372595,0.00110311,58059.0,58058.0,1.04450239]
[1723707372775,0.00011,58073.0,58067.0,1.46285]
[1723707373222,0.00011,58073.0,58067.0,1.73440454]
[1723707374014,0.00011,58073.0,58067.0,1.55260454]
[1723707375076,0.00011,58073.0,58067.0,1.31150454]
[1723707375275,0.01004201,58068.0,58067.0,1.31150454]
[1723707376210,0.00904201,58068.0,58067.0,1.31150454]
[1723707376942,0.01004201,58068.0,58067.0,1.31150454]
[1723707379171,0.01004201,58068.0,58067.0,1.07040454]
[1723707379376,0.01004201,58068.0,58061.0,0.1435]
[1723707379584,0.120554,58065.0,58062.0,0.17155454]
[1723707379916,0.01004201,58068.0,58062.0,0.17155454]
[1723707380151,0.120556,58065.0,58062.0,0.17155454]
[1723707380388,0.00904201,58068.0,58063.0,0.120558]
[1723707380626,0.00904201,58068.0,58063.0,0.29211254]
[1723707381096,0.00904201,58068.0,58063.0,0.17155454]
[1723707381337,0.120552,58066.0,58063.0,0.18196133]
[1723707381533,0.00904201,58068.0,58063.0,0.18196133]
[1723707381734,0.120551,58067.0,58063.0,0.18196133]
[1723707381924,0.12959101,58068.0,58063.0,0.18196133]
[1723707382189,0.08577727,58067.0,58057.0,0.1]
[1723707382412,0.241109,58065.0,58058.0,0.17155454]
[1723707382614,0.241114,58064.0,58058.0,0.17155454]
[1723707382743,0.241118,58063.0,58058.0,0.17155454]
[1723707382948,0.120561,58062.0,58058.0,0.17155454]
[1723707383576,0.241109,58065.0,58058.0,0.17155454]
[1723707383577,0.120558,58064.0,58058.0,0.17155454]
[1723707383780,0.120558,58063.0,58058.0,0.17155454]
[1723707384207,0.241109,58065.0,58058.0,0.17155454]
[1723707384208,0.004,58067.0,58058.0,0.17155454]
[1723707384410,0.004,58067.0,58062.0,0.120559]
[1723707384611,0.004,58067.0,58063.0,0.37001254]
[1723707384784,0.00904201,58068.0,58063.0,0.37001254]
[1723707385153,0.00904201,58068.0,58063.0,0.24945454]
[1723707385279,0.00904201,58068.0,58064.0,0.120556]
[1723707385515,0.00904201,58068.0,58066.0,0.120551]
[1723707385723,0.00904201,58068.0,58067.0,0.17155454]
[1723707385929,0.00904201,58068.0,58067.0,0.29210454]
[1723707386131,0.00904201,58068.0,58067.0,0.35340454]
[1723707386369,0.01204201,58068.0,58067.0,0.83560454]
[1723707386575,0.00904201,58068.0,58067.0,0.93560454]
[1723707387574,0.00904201,58068.0,58067.0,0.69450454]
[1723707388096,0.00904201,58068.0,58067.0,0.33285454]
[1723707388323,0.00904201,58068.0,58067.0,0.45340454]
[1723707388518,0.00904201,58068.0,58067.0,0.69450454]
[1723707388781,0.01204201,58068.0,58067.0,0.69450454]
[1723707389294,0.01204201,58068.0,58067.0,0.28190016]
[1723707389527,0.361693,58060.0,58059.0,0.000821]
[1723707389749,0.15314201,58068.0,58059.0,0.000821]
[1723707389954,0.241102,58067.0,58060.0,0.17155454]
[1723707390227,0.241106,58066.0,58059.0,0.000821]
[1723707390493,0.120557,58064.0,58059.0,0.17237554]
[1723707390731,0.120556,58065.0,58059.0,0.29294254]
[1723707391008,0.120556,58065.0,58059.0,0.17237554]
[1723707391288,0.08634201,58068.0,58059.0,0.17237554]
[1723707391514,0.120564,58061.0,58059.0,0.17237554]
[1723707391714,0.120564,58060.0,58059.0,0.000821]
[1723707392265,0.120562,58062.0,58059.0,0.000821]
[1723707392467,0.120562,58061.0,58059.0,0.000821]
[1723707393245,0.08577727,58067.0,58059.0,0.000821]
[1723707393246,0.001,58060.0,58059.0,0.000821]
[1723707393457,0.241113,58064.0,58059.0,0.000821]
[1723707393656,0.120564,58060.0,58059.0,0.000821]
[1723707393806,0.602822,58060.0,58059.0,0.000821]
[1723707394415,0.361693,58060.0,58059.0,0.000821]
[1723707394965,0.120564,58060.0,58059.0,0.000821]
[1723707395250,0.241122,58062.0,58059.0,0.000821]
[1723707395468,0.001,58060.0,58059.0,0.000821]
[1723707395667,0.001,58060.0,58059.0,0.36874254]
[1723707395930,0.001,58060.0,58059.0,1.01701054]
[1723707396279,0.001,58060.0,58059.0,0.77587654]
[1723707397508,0.001,58060.0,58059.0,1.01701054]
[1723707400408,0.001,58060.0,58059.0,1.25814454]
[1723707400610,0.00190311,58060.0,58059.0,1.25814454]
[1723707407046,0.00190311,58060.0,58059.0,1.01701054]
[1723707407288,0.00190311,58060.0,58059.0,0.39294254]
[1723707407477,0.00190311,58060.0,58059.0,0.100821]
[1723707407973,0.00190311,58060.0,58059.0,0.000821]
[1723707408348,0.00190311,58060.0,58059.0,0.221388]
[1723707408611,0.00190311,58060.0,58059.0,0.77521054]
[1723707408757,0.00190311,58060.0,58059.0,1.26074454]
[1723707409648,0.00190311,58060.0,58059.0,1.49884454]
[1723707414082,0.00190311,58060.0,58059.0,1.11331054]
[1723707414796,0.00190311,58060.0,58059.0,0.63104254]
[1723707415148,0.00190311,58060.0,58059.0,0.338921]
[1723707415357,0.00190311,58060.0,58059.0,0.459488]
[1723707416041,0.00190311,58060.0,58059.0,0.700622]
[1723707416695,0.00190311,58060.0,58059.0,0.87217654]
[1723707416895,0.00190311,58060.0,58059.0,1.11331054]
[1723707418385,0.00190311,58060.0,58059.0,1.42014454]
[1723707419586,0.00190311,58060.0,58059.0,0.100821]
[1723707419821,0.00190311,58060.0,58059.0,0.121388]
[1723707420095,0.00190311,58060.0,58059.0,0.462522]
[1723707420348,0.00190311,58060.0,58059.0,0.221388]
[1723707421327,0.00190311,58060.0,58059.0,0.63407654]
[1723707421553,0.00190311,58060.0,58059.0,0.87521054]
[1723707421786,0.00190311,58060.0,58059.0,1.11331054]
[1723707422048,0.00190311,58060.0,58059.0,1.35444454]
[1723707422780,0.00190311,58060.0,58059.0,1.43134454]
[1723707424171,0.00190311,58060.0,58059.0,1.78594046]
[1723707424417,0.00190311,58060.0,58059.0,1.96771526]
[1723707424713,0.00190311,58060.0,58059.0,1.94905334]
[1723707424955,0.00190311,58060.0,58059.0,1.70791348]
[1723707425443,0.00090311,58060.0,58059.0,1.70991348]
[1723707425944,0.00190311,58060.0,58059.0,1.70991348]
[1723707426655,0.00190311,58060.0,58059.0,1.70791348]
[1723707426914,0.00190311,58060.0,58059.0,1.28804454]
[1723707426915,0.00090311,58060.0,58059.0,1.28804454]
[1723707427138,0.00090311,58060.0,58059.0,1.08844845]
[1723707427406,0.00190311,58060.0,58059.0,0.90971054]
[1723707427681,0.00190311,58060.0,58059.0,1.08845169]
[1723707427914,0.00190311,58060.0,58059.0,1.05395126]
[1723707428156,0.00190311,58060.0,58059.0,1.29508526]
[1723707428386,0.00190311,58060.0,58059.0,1.71601926]
[1723707428626,0.00190311,58060.0,58059.0,1.86898118]
[1723707429155,0.00904201,58068.0,58067.0,0.84385]
[1723707429412,0.00904201,58068.0,58067.0,1.43040454]
[1723707429922,0.00904201,58068.0,58067.0,1.11240454]
[1723707430415,0.00904201,58068.0,58067.0,1.11340454]
[1723707430645,0.00904201,58068.0,58067.0,1.11240454]
[1723707431684,0.00904201,58068.0,58067.0,1.11440454]
[1723707432311,0.00904201,58068.0,58067.0,1.35550454]
[1723707432720,0.00904201,58068.0,58067.0,1.11440454]
[1723707433949,0.00904201,58068.0,58067.0,0.27355454]
[1723707433950,0.07224201,58068.0,58067.0,0.27355454]
[1723707434151,0.07224201,58068.0,58067.0,0.39410454]
[1723707434374,0.00904201,58068.0,58067.0,0.39410454]
[1723707434594,0.00904201,58068.0,58067.0,1.11440454]
[1723707434794,0.00904201,58068.0,58067.0,0.87330454]
[1723707435006,0.00904201,58068.0,58067.0,0.63020454]
[1723707435402,0.00904201,58068.0,58067.0,0.27155454]
[1723707435609,0.08604201,58068.0,58067.0,0.27155454]
[1723707436019,0.08604201,58068.0,58061.0,0.2381]
[1723707436020,0.120551,58067.0,58061.0,0.120561]
[1723707436225,0.08604201,58068.0,58062.0,0.27155454]
[1723707436430,0.1375488,58068.0,58062.0,0.27155454]
[1723707436630,0.1375488,58068.0,58063.0,0.241116]
[1723707436843,0.08704201,58068.0,58064.0,0.27155454]
[1723707437055,0.13854641,58068.0,58064.0,0.27155454]
[1723707437291,0.13754641,58068.0,58064.0,0.27155454]
[1723707437715,0.14154641,58068.0,58064.0,0.27155454]
[1723707437930,0.1415498,58068.0,58064.0,0.27155454]
[1723707438124,0.1375498,58068.0,58064.0,0.27155454]
[1723707438336,0.1375498,58068.0,58064.0,0.1]
[1723707438552,0.05150779,58067.0,58061.0,0.461685]
[1723707438758,0.26204332,58068.0,58061.0,0.39211554]
[1723707438966,0.21059101,58068.0,58062.0,0.12056]
[1723707439186,0.21059101,58068.0,58063.0,0.1]
[1723707439407,0.26204,58068.0,58063.0,0.1]
[1723707439629,0.262039,58068.0,58063.0,0.1]
[1723707439848,0.141491,58068.0,58064.0,0.29210954]
[1723707440096,0.141491,58068.0,58065.0,0.1]
[1723707440297,0.137491,58068.0,58065.0,0.27155454]
[1723707440732,0.060491,58068.0,58065.0,0.1]
[1723707440955,0.060491,58068.0,58059.0,0.000821]
[1723707440956,0.0788,58065.0,58059.0,0.000821]
[1723707441162,0.05145349,58063.0,58059.0,0.000821]
[1723707441404,0.05145349,58063.0,58059.0,0.121386]
[1723707441613,0.05145349,58064.0,58060.0,0.1]
[1723707441823,0.05145349,58063.0,58060.0,0.1]
[1723707442030,0.05145349,58062.0,58060.0,0.1]
[1723707442467,0.05145349,58063.0,58060.0,0.1]
[1723707443422,0.0788,58065.0,58060.0,0.120564]
[1723707443649,0.0788,58065.0,58061.0,0.1]
[1723707443879,0.05145349,58064.0,58061.0,0.1]
[1723707444127,0.05145349,58064.0,58061.0,0.220562]
[1723707445390,0.05145349,58064.0,58063.0,0.120558]
[1723707445624,0.05145349,58064.0,58063.0,0.29211254]
[1723707446112,0.05145349,58064.0,58061.0,0.1]
[1723707446357,0.0803,58063.0,58060.0,0.01259942]
[1723707446647,0.21753076,58063.0,58060.0,0.01259942]
[1723707446840,0.21753076,58063.0,58059.0,0.221387]
[1723707447085,0.21753076,58063.0,58059.0,0.100821]
[1723707447317,0.602822,58060.0,58059.0,0.000821]
[1723707447559,0.85121999,58060.0,58059.0,0.000821]
[1723707447783,1.08830112,58060.0,58059.0,0.000821]
[1723707448487,1.88473068,58060.0,58059.0,0.000821]
[1723707448739,1.61434438,58060.0,58059.0,0.000821]
[1723707448981,1.61434438,58060.0,58059.0,0.001821]
[1723707448982,1.75785013,58060.0,58059.0,0.001821]
[1723707450289,1.6141048,58060.0,58059.0,0.000821]
[1723707450707,1.75527051,58060.0,58059.0,0.001821]
[1723707450913,1.89536792,58060.0,58059.0,0.000821]
[1723707451123,0.241192,58045.0,58042.0,0.000821]
[1723707451329,0.3618,58043.0,58042.0,0.000821]
[1723707451532,0.256999,58044.0,58042.0,0.000821]
[1723707451746,0.1364,58044.0,58042.0,0.000821]
[1723707451952,0.1206,58043.0,58042.0,0.000821]
[1723707452377,0.1364,58044.0,58042.0,0.000821]
[1723707452596,0.07704349,58052.0,58046.0,0.120593]
[1723707452597,0.0812,58050.0,58046.0,0.120593]
[1723707452816,0.0812,58050.0,58045.0,0.120594]
[1723707453084,0.0812,58050.0,58043.0,0.120598]
[1723707453285,0.0812,58050.0,58044.0,0.120596]
[1723707453533,0.201786,58050.0,58043.0,0.120598]
[1723707453956,0.4764,58054.0,58049.0,0.241175]
[1723707454162,0.4764,58054.0,58052.0,0.12058]
[1723707454376,0.4764,58054.0,58051.0,0.120582]
[1723707454583,0.4764,58054.0,58048.0,0.241178]
[1723707454995,0.4764,58054.0,58048.0,0.120588]
[1723707455200,0.596978,58054.0,58047.0,0.12059]
[1723707455410,0.4904,58054.0,58049.0,0.001]
[1723707455665,0.120582,58052.0,58049.0,0.001]
[1723707455917,0.0821,58053.0,58049.0,0.001]
[1723707456149,0.0821,58053.0,58050.0,0.120585]
[1723707456431,0.0821,58053.0,58052.0,0.120581]
[1723707456690,0.0754,58063.0,58062.0,0.241121]
[1723707456902,0.0754,58063.0,58062.0,0.12056]
[1723707457333,0.0754,58063.0,58061.0,0.120562]
[1723707457544,0.0754,58063.0,58059.0,0.120566]
[1723707457748,0.0754,58063.0,58058.0,0.241137]
[1723707457956,0.0754,58063.0,58060.0,0.120563]
[1723707458172,0.0754,58063.0,58059.0,0.120566]
[1723707458377,0.0754,58063.0,58058.0,0.120569]
[1723707458583,0.0754,58063.0,58062.0,0.001]
[1723707458584,0.209959,58063.0,58062.0,0.001]
[1723707459415,0.451076,58063.0,58062.0,0.001]
[1723707459849,0.120563,58061.0,58054.0,0.120575]
[1723707460295,0.120563,58061.0,58060.0,0.001]
[1723707460759,0.120563,58061.0,58054.0,0.120575]
[1723707461575,0.316517,58063.0,58053.0,0.120579]
[1723707461783,0.0787,58058.0,58053.0,0.120579]
[1723707462010,0.0787,58058.0,58053.0,0.2539578]
[1723707462230,0.0787,58058.0,58055.0,0.120574]
[1723707462500,0.0787,58058.0,58054.0,0.120577]
[1723707462993,0.0787,58058.0,58055.0,0.120575]
[1723707463458,0.0787,58058.0,58054.0,0.001]
[1723707463705,0.199269,58058.0,58054.0,0.001822]
[1723707463965,0.0787,58058.0,58054.0,0.000822]
[1723707464192,0.0787,58058.0,58054.0,0.36355]
[1723707464193,0.0877,58058.0,58054.0,0.36355]
[1723707464425,0.0877,58058.0,58054.0,0.001822]
[1723707464672,0.009,58058.0,58057.0,0.120571]
[1723707464895,0.009,58058.0,58057.0,1.17260954]
[1723707465117,0.00090311,58064.0,58057.0,1.17260954]
[1723707465118,0.00090311,58064.0,58063.0,0.120558]
[1723707465575,0.00090311,58064.0,58063.0,0.361675]
[1723707466515,0.00090311,58064.0,58063.0,0.602792]
[1723707466936,0.00090311,58064.0,58058.0,0.41269154]
[1723707467159,0.00090311,58064.0,58059.0,0.1]
[1723707467160,0.082,58063.0,58059.0,0.1]
[1723707467362,0.082,58063.0,58059.0,0.220566]
[1723707467779,0.082,58063.0,58054.0,0.241976]
[1723707467984,0.082,58061.0,58054.0,0.01370374]
[1723707468272,0.120567,58059.0,58054.0,0.01370374]
[1723707468757,0.24113,58060.0,58054.0,0.000822]
[1723707468769,0.14697727,58062.0,58054.0,0.000822]
[1723707468770,0.120575,58055.0,58054.0,0.000822]
[1723707469244,0.361725,58055.0,58054.0,0.000822]
[1723707469504,0.746075,58055.0,58054.0,0.000822]
[1723707469755,0.769075,58055.0,58054.0,0.000822]
[1723707470652,1.010225,58055.0,58054.0,0.000822]
[1723707470906,0.769075,58055.0,58054.0,0.000822]
[1723707471367,0.776075,58055.0,58054.0,0.001822]
[1723707472048,1.017225,58055.0,58054.0,0.001822]
[1723707472274,0.776075,58055.0,58054.0,0.001822]
[1723707472627,1.017225,58055.0,58054.0,0.001822]
[1723707472822,1.09414956,58055.0,58054.0,0.001822]
[1723707473227,0.85300013,58055.0,58054.0,0.001822]
[1723707473717,1.08715013,58055.0,58054.0,0.000822]
[1723707473924,0.84600013,58055.0,58054.0,0.000822]
[1723707474131,1.09715013,58055.0,58054.0,0.001822]
[1723707475304,1.02007575,58055.0,58054.0,0.001822]
[1723707475501,1.09700902,58055.0,58054.0,0.001822]
[1723707476621,0.85585902,58055.0,58054.0,0.001822]
[1723707476826,1.02741356,58055.0,58054.0,0.001822]
[1723707476976,1.26856356,58055.0,58054.0,0.001822]
[1723707477560,1.19163029,58055.0,58054.0,0.001822]
[1723707477939,1.2585573,58055.0,58054.0,0.000822]
[1723707478343,1.19563029,58055.0,58054.0,0.000822]
[1723707478751,0.85985999,58055.0,58054.0,0.000822]
[1723707479354,1.10985302,58055.0,58054.0,0.000822]
[1723707480211,0.86870302,58055.0,58054.0,0.000822]
[1723707480415,1.34099753,58055.0,58054.0,0.000822]
[1723707480590,2.65759201,58055.0,58054.0,0.000822]
[1723707480997,0.8442,58043.0,58042.0,0.000821]
[1723707481219,0.9843,58043.0,58042.0,0.000821]
[1723707481947,0.7431,58043.0,58042.0,0.000821]
[1723707482371,1.15585454,58043.0,58042.0,0.000821]
[1723707482595,1.25578848,58043.0,58042.0,0.000821]
[1723707482810,1.36957776,58043.0,58042.0,0.000821]
[1723707483234,1.17885454,58043.0,58042.0,0.000821]
[1723707483636,1.26273374,58043.0,58042.0,0.000821]
[1723707484160,1.25573374,58043.0,58042.0,0.000821]
[1723707484559,1.26873374,58043.0,58042.0,0.000821]
[1723707484775,1.0971792,58043.0,58042.0,0.000821]
[1723707484983,1.0203,58043.0,58042.0,0.000821]
[1723707485422,0.7791,58043.0,58042.0,0.000821]
[1723707486996,1.0203,58043.0,58042.0,0.000821]
[1723707487206,0.7791,58043.0,58042.0,0.000821]
[1723707487400,0.5379,58043.0,58042.0,0.000821]
[1723707487598,0.3748,58043.0,58042.0,0.000821]
[1723707487833,0.3698,58043.0,58042.0,0.000821]
[1723707488030,0.1286,58043.0,58042.0,0.000821]
[1723707488509,0.3698,58043.0,58042.0,0.000821]
[1723707488915,0.611,58043.0,58042.0,0.000821]
[1723707489119,0.9552,58043.0,58042.0,0.000821]
[1723707496899,0.714,58043.0,58042.0,0.000821]
[1723707497733,0.9552,58043.0,58042.0,0.000821]
[1723707498143,1.12675454,58043.0,58042.0,0.000821]
[1723707498351,2.34424261,58043.0,58042.0,0.000821]
[1723707498558,2.53218933,58043.0,58042.0,0.000821]
[1723707498770,1.7194157,58043.0,58042.0,0.000821]
[1723707498981,2.50921068,58043.0,58042.0,0.000821]
[1723707499190,2.21875454,58043.0,58042.0,0.000821]
[1723707499427,2.50852716,58043.0,58042.0,0.000821]
[1723707499634,2.40600923,58043.0,58042.0,0.000821]
[1723707499836,1.71851709,58043.0,58042.0,0.000821]
[1723707500038,1.70576569,58043.0,58042.0,0.000821]
[1723707500253,2.68132023,58043.0,58042.0,0.000821]
[1723707500461,2.74355811,58043.0,58042.0,2.427e-05]
[1723707500728,0.980559,58039.0,58038.0,0.000821]
[1723707500939,2.14736257,58039.0,58038.0,0.000821]
[1723707501152,2.56013411,58039.0,58038.0,0.000821]
[1723707501561,1.55543245,58039.0,58038.0,0.000821]
[1723707501804,1.25196101,58039.0,58038.0,0.000821]
[1723707502021,1.2263481,58039.0,58038.0,0.000821]
[1723707502240,1.17511354,58039.0,58038.0,0.000821]
[1723707502452,0.361825,58039.0,58038.0,0.000821]
[1723707502661,0.361825,58039.0,58038.0,0.082821]
[1723707502662,0.120608,58039.0,58038.0,0.082821]
[1723707502907,0.120588,58049.0,58043.0,0.120599]
[1723707503111,0.40441927,58053.0,58040.0,0.0617]
[1723707503112,0.13701183,58053.0,58040.0,0.0617]
[1723707503316,0.120594,58046.0,58040.0,0.0617]
[1723707503518,0.120596,58045.0,58040.0,0.0617]
[1723707503723,0.241184,58047.0,58040.0,0.0617]
[1723707503927,0.241186,58047.0,58040.0,0.0617]
[1723707504154,0.120603,58042.0,58040.0,0.0617]
[1723707504559,0.241196,58044.0,58040.0,0.0617]
[1723707504732,0.014,58045.0,58040.0,0.0617]
[1723707504955,0.120598,58044.0,58040.0,0.0617]
[1723707505189,0.120603,58042.0,58040.0,0.0617]
[1723707505429,0.132603,58042.0,58040.0,0.0617]
[1723707506573,0.012,58042.0,58040.0,0.0617]
[1723707506865,0.241178,58049.0,58040.0,0.0617]
[1723707507072,0.120594,58046.0,58040.0,0.0617]
[1723707507278,0.014,58045.0,58040.0,0.0617]
[1723707507481,0.120592,58047.0,58041.0,0.120604]
[1723707507690,0.120591,58047.0,58041.0,0.120603]
[1723707507893,0.012,58042.0,58041.0,0.44311]
[1723707508320,0.120589,58049.0,58043.0,0.1206]
[1723707508529,0.120589,58049.0,58041.0,0.322506]
[1723707508743,0.15384817,58061.0,58044.0,0.748889]
[1723707508744,0.014,58045.0,58044.0,0.748889]
[1723707508962,0.014,58045.0,58044.0,0.92044354]
[1723707509183,0.014,58045.0,58044.0,0.266497]
[1723707509825,0.014,58045.0,58044.0,0.507693]
[1723707510031,0.00090421,58055.0,58047.0,0.120591]
[1723707510237,0.12058,58053.0,58047.0,0.120591]
[1723707510651,0.00090421,58055.0,58048.0,0.120589]
[1723707510652,0.12148121,58055.0,58048.0,0.120589]
[1723707510855,0.12148121,58055.0,58049.0,0.120587]
[1723707511269,0.12148121,58055.0,58051.0,0.241167]
[1723707511270,0.00090421,58055.0,58051.0,0.241167]
[1723707511724,0.12148021,58055.0,58050.0,0.076]
[1723707512414,0.00090421,58055.0,58050.0,0.076]
[1723707512815,0.00090421,58055.0,58050.0,0.196585]
[1723707513263,0.01490421,58055.0,58052.0,0.120581]
[1723707513489,0.01490421,58055.0,58054.0,0.120577]
[1723707513678,0.01490421,58055.0,58054.0,0.361731]
[1723707513887,0.02890421,58055.0,58054.0,0.361731]
[1723707514099,0.00090421,58055.0,58054.0,0.602885]
[1723707514561,0.01490421,58055.0,58054.0,0.602885]
[1723707514764,0.00090421,58055.0,58054.0,0.680485]
[1723707514973,0.00090421,58055.0,58054.0,0.91263954]
[1723707515185,0.01190421,58055.0,58054.0,1.15379354]
[1723707515613,0.01190421,58055.0,58054.0,0.91263954]
[1723707516465,0.00090421,58055.0,58054.0,0.91263954]
[1723707516921,0.00990421,58055.0,58054.0,0.499931]
[1723707517128,0.00990421,58055.0,58054.0,0.120577]
[1723707517348,0.00090421,58055.0,58054.0,0.120577]
[1723707517554,0.00590421,58055.0,58054.0,0.361731]
[1723707517957,0.00090421,58055.0,58054.0,0.361731]
[1723707518202,0.00890421,58055.0,58054.0,0.361731]
[1723707518407,0.00890421,58055.0,58054.0,0.120577]
[1723707518620,0.00890421,58055.0,58053.0,0.120578]
[1723707518835,0.00890421,58055.0,58051.0,0.15639202]
[1723707519043,0.00890421,58055.0,58054.0,0.120577]
[1723707519247,0.00890421,58055.0,58051.0,0.32794656]
[1723707519454,0.00090421,58055.0,58052.0,0.12058]
[1723707519687,0.00090421,58055.0,58051.0,0.27697502]
[1723707519888,0.01290421,58055.0,58052.0,0.120581]
[1723707520309,0.00090421,58055.0,58052.0,0.120581]
[1723707520516,0.01290421,58055.0,58052.0,0.120581]
[1723707520924,0.00090421,58055.0,58052.0,0.120581]
[1723707521135,0.00090421,58055.0,58051.0,0.27697402]
[1723707521346,0.01490421,58055.0,58051.0,0.27697402]
[1723707522178,0.01490421,58055.0,58052.0,0.12058]
[1723707522393,0.01490421,58055.0,58054.0,0.120577]
[1723707522602,0.01490421,58055.0,58054.0,0.361731]
[1723707523024,0.01490421,58055.0,58053.0,0.120578]
[1723707523229,0.02790421,58055.0,58051.0,0.27697502]
[1723707523485,0.00090421,58055.0,58052.0,0.120581]
[1723707523915,0.01190421,58055.0,58052.0,0.120581]
[1723707524125,0.00090421,58055.0,58052.0,0.120581]
[1723707524566,0.01190421,58055.0,58052.0,0.120581]
[1723707524878,0.01190421,58055.0,58051.0,0.39755802]
[1723707525087,0.13247921,58055.0,58051.0,0.01279202]
[1723707525312,0.01190421,58055.0,58048.0,0.120589]
[1723707525694,0.120578,58054.0,58048.0,0.120588]
[1723707526521,0.01490421,58055.0,58049.0,0.120587]
[1723707526721,0.12058,58053.0,58048.0,0.000822]
[1723707526869,0.12058,58053.0,58048.0,0.100822]
[1723707527093,0.12058,58053.0,58048.0,0.221411]
[1723707527294,0.00090421,58055.0,58052.0,0.12058]
[1723707527468,0.013,58054.0,58053.0,0.120579]
[1723707527672,0.013,58054.0,58051.0,0.120582]
[1723707527876,0.013,58054.0,58053.0,0.120579]
[1723707528122,0.013,58054.0,58051.0,0.120582]
[1723707528283,0.013,58054.0,58050.0,0.120585]
[1723707528845,0.013,58054.0,58052.0,0.12058]
[1723707529047,0.013,58054.0,58049.0,0.241173]
[1723707529048,0.00090421,58055.0,58050.0,0.120583]
[1723707529169,0.00090421,58055.0,58049.0,0.241173]
[1723707529363,0.012,58053.0,58049.0,0.241173]
[1723707529677,0.012,58053.0,58051.0,0.120583]
[1723707529843,0.00090421,58055.0,58051.0,0.120583]
[1723707530037,0.013,58054.0,58049.0,0.241173]
[1723707530359,0.00090421,58055.0,58049.0,0.241173]
[1723707530728,0.00090421,58055.0,58051.0,0.120582]
[1723707530935,0.012,58053.0,58048.0,0.000822]
[1723707531136,0.120581,58052.0,58048.0,0.000822]
[1723707532231,0.0787,58053.0,58048.0,0.000822]
[1723707532484,0.19928,58053.0,58048.0,0.000822]
[1723707532659,0.120583,58051.0,58048.0,0.000822]
[1723707533506,0.120587,58049.0,58048.0,0.000822]
[1723707534544,0.250168,58051.0,58048.0,0.000822]
[1723707534761,0.120586,58050.0,58048.0,0.000822]
[1723707535834,0.127587,58049.0,58048.0,0.000822]
[1723707536085,0.120587,58049.0,58048.0,0.000822]
[1723707536530,1.011112,58049.0,58048.0,0.000822]
[1723707536741,1.31086516,58049.0,58048.0,0.000822]
[1723707536973,1.42907769,58049.0,58048.0,0.000822]
[1723707537278,2.40025269,58049.0,58048.0,0.000822]
[1723707537502,1.67370171,58049.0,58048.0,6.918e-05]